Cogmind - Beta 14 *** ADVENTURER MODE // 2024.08.12 @ 21:39:16 Player: cd-rom Result: Destroyed by P-60 Hacker with Shock Rifle Performance ------------- Evolutions (4) 2000 Regions Visited (7) 1400 Robots Destroyed (132) 660 Value Destroyed (4387) 4387 Prototype IDs (13) 260 Alien Tech Used (0) 0 Bonus (43) 43 TOTAL SCORE: 8750 Bonus ------- High Alert Combat Kills 43 Cogmind --------- Core Integrity 0/850 Matter 23/300 Energy 100/100 System Corruption 8% Temperature Cool (0) Movement Core (2350) Ox46 Location -6/Factory Parts ------- > --- POWER (2) -------- (None) > --- PROPULSION (2) --- (None) > --- UTILITY (8) ------ Cargo Storage Unit Advanced Weight Redist. System Transport Network Coupler Improved Targeting Computer Focal Shield > --- WEAPON (3) ------- (None) > --- INVENTORY (30) --- Light Nuclear Core Light Nuclear Core Aluminum Leg Wheel Wheel Wheel Seismic Detector Core Shielding Light Armor Plating Reactive Plating Recalibrator Drone Bay (2/2) High-powered Shock Rifle High-powered Shock Rifle Proton Cannon High-powered Shotgun Enhanced Autogun Heavy Flak Cannon Mini Grenade Launcher Remote Datajack Remote Datajack Katana Peak State ------------ > --- POWER ------------ Light Deuterium Engine Light Nuclear Core > --- PROPULSION ------- Armored Huge Wheel > --- UTILITY ---------- Cargo Storage Unit Advanced Weight Redist. System Transport Network Coupler Improved Targeting Computer Focal Shield Hacking Suite > --- WEAPON ----------- Compact Ion Cannon Heavy Flak Cannon Advanced EMP Blaster > --- INVENTORY -------- Light Nuclear Core Light Nuclear Core Aluminum Leg Wheel Wheel Wheel Seismic Detector Core Shielding Light Armor Plating Reactive Plating Recalibrator Drone Bay High-powered Shock Rifle High-powered Shock Rifle Proton Cannon High-powered Shotgun Enhanced Autogun Shock Bomb Launcher Mini Grenade Launcher Remote Datajack Katana [Rating: 50] Favorites ----------- Power Light Nuclear Core Engine Cooled Ion Engine Power Core Light Nuclear Core Propulsion Compact Wheel Leg Aluminum Leg Wheel Compact Wheel Utility Transport Network Coupler Device Seismic Detector Storage Huge Storage Unit Processor Transport Network Coupler Hackware Hacking Suite Protection Light Armor Plating Weapon Improved Assault Rifle Energy Gun Improved EM Shotgun Energy Cannon Advanced Beam Cannon Ballistic Gun Improved Assault Rifle Ballistic Cannon Magnetic Acceleration Cannon Launcher Advanced EMP Blaster Build | -11 -10 -10 -9 -8 -8 -8 -6 ------- Run | Yrd Mat Min Mat Mat Sto Rec Fac Slots Evolved 8 | . . . 2 2 . . 4 Power 1 | . . . . . . . 1 Propulsion . | . . . . . . . . Utility 6 | . . . 2 1 . . 3 Weapon 1 | . . . . 1 . . . Parts Attached 66 | 6 6 2 14 6 12 1 19 Power 9 | 1 . . 2 1 2 . 3 Engine 4 | 1 . . . . 1 . 2 Core 5 | . . . 2 1 1 . 1 Reactor . | . . . . . . . . Propulsion 15 | 2 2 . 3 2 4 1 1 Treads . | . . . . . . . . Leg 4 | 2 1 . 1 . . . . Wheel 11 | . 1 . 2 2 4 1 1 Hover . | . . . . . . . . Flight . | . . . . . . . . Utility 21 | 1 2 2 5 1 2 . 8 Device 6 | . . . 1 . 2 . 3 Storage 6 | 1 1 2 1 . . . 1 Processor 4 | . 1 . 2 1 . . . Hackware 1 | . . . . . . . 1 Protection 4 | . . . 1 . . . 3 Artifact . | . . . . . . . . Weapon 21 | 2 2 . 4 2 4 . 7 Energy Gun 2 | 1 . . . . 1 . . Energy Cannon 4 | . . . . 1 2 . 1 Ballistic Gun 8 | 1 1 . 3 1 1 . 1 Ballistic Cannon 4 | . 1 . 1 . . . 2 Launcher 3 | . . . . . . . 3 Special Weapon . | . . . . . . . . Impact Weapon . | . . . . . . . . Slashing Weapon . | . . . . . . . . Piercing Weapon . | . . . . . . . . Special Melee Weapon . | . . . . . . . . Unidentified Prototypes . | . . . . . . . . Parts Lost 28 | . . . 2 2 6 . 18 Power 6 | . . . . . 2 . 4 Propulsion 4 | . . . . 1 1 . 2 Utility 9 | . . . 2 . 1 . 6 Weapon 9 | . . . . 1 2 . 6 Highest Loss Streak 7 | . . . 1 1 3 . 7 To Critical Strikes . | . . . . . . . . Average Slot Usage (%) 96 | . 98 99 99 97 98 100 87 Engine 6 | . 14 14 . . 6 9 11 Core 4 | . . . 10 9 2 . . Leg 7 | . 27 28 10 . . . . Wheel 11 | . . . 10 17 16 18 11 Device 10 | . . . 11 9 16 18 14 Storage 9 | . 14 13 11 9 9 9 6 Processor 16 | . 12 14 20 16 18 18 13 Protection 3 | . . . . 9 1 . 5 Energy Gun 2 | . 7 . . . 5 9 . Energy Cannon 4 | . . . . 9 9 9 5 Ballistic Gun 13 | . 18 14 16 17 11 9 5 Ballistic Cannon 3 | . 1 14 5 . . . 5 Peak Build Rating 50 | 6 8 8 19 24 26 26 50 Average Rating 22 | 4 7 7 15 23 25 26 39 On Entrance 14 | . 6 8 8 18 24 26 26 Naked Turns . | . . . . . . . . Heaviest Build 176 | 14 20 20 95 99 99 99 176 Greatest Support 38 | 20 20 20 26 26 38 38 38 Greatest Overweight (x) 53 | . . . 5 3 4 3 53 Average Overweight (x) 2 | . . . 3 3 3 2 5 Largest Inventory Capacity 30 | 8 10 10 25 25 25 25 30 Average Capacity 22 | 6 9 9 22 25 25 25 30 Most Carried 30 | 5 10 10 21 25 25 25 30 Average Carried 19 | 3 9 9 15 23 24 24 24 Final Capacity 30 | 8 10 10 25 25 25 25 30 Final Carried 25 | 4 10 10 21 25 25 25 22 Class Distribution -------------------- 35% | Scavenger-Gunner 31% | Mutant 15% | Hauler-Gunner 10% | Scavenger-Mutant Dominant Class ---------------- Mutant | -10/Materials Mutant | -10/Mines Mutant | -9/Materials Scavenger-Gunner | -8/Materials Scavenger-Gunner | -8/Storage Scavenger-Gunner | -8/Recycling Hauler-Gunner | -6/Factory Resources | -11 -10 -10 -9 -8 -8 -8 -6 ----------- Run | Yrd Mat Min Mat Mat Sto Rec Fac Matter Collected 2079 | 198 160 136 498 279 351 37 420 Remotely . | . . . . . . . . Salvage Created 5017 | . 370 90 1253 972 1337 83 912 Parts 286 | . 33 5 75 55 73 4 41 Haulers Intercepted 4 | . 1 . 1 1 1 . . Recyclers Shooed 10 | . 5 . . 4 . . 1 Parts Field Recycled . | . . . . . . . . Retrieved Matter . | . . . . . . . . Parts Self-Destructed . | . . . . . . . . Prevented . | . . . . . . . . Kills | -11 -10 -10 -9 -8 -8 -8 -6 ------- Run | Yrd Mat Min Mat Mat Sto Rec Fac Combat Hostiles Destroyed 102 | . 9 3 26 16 24 . 24 Guns 55 | . 9 3 21 7 13 . 2 Cannons 37 | . . . 5 9 10 . 13 AOE 7 | . . . . . . . 7 Classes Destroyed 14 | . 5 . 2 1 3 . 3 Builder 3 | . . . . . 1 . 2 Hauler 4 | . 1 . 1 1 1 . . Recycler 6 | . 1 1 1 1 1 1 . Mechanic 1 | . . . . . . . 1 Operator 4 | . . . 1 2 1 . . Watcher 12 | . 3 . 4 3 1 . 1 Swarmer 23 | . 5 3 4 3 4 . 4 Grunt 47 | . 4 . 16 7 7 . 13 Brawler 1 | . . . . . 1 . . Duelist 3 | . . . . 1 1 . 1 Sentry 21 | . . . 6 5 10 . . Specialist 1 | . . . . . . . 1 Hunter 4 | . . . . . 1 . 3 Programmer 2 | . . . . . . . 2 Best Kill Streak 8 | . 4 3 4 4 8 1 6 Combat Bots Only 6 | . 3 3 4 3 6 . 6 Max Kills in Single Turn 3 | . 2 1 1 2 2 1 3 Gunslinging 1 | . 1 . . . . . . Exploded 2 | . . . . . . . 2 Melee . | . . . . . . . . Uniques/NPCs Destroyed . | . . . . . . . . Combat | -11 -10 -10 -9 -8 -8 -8 -6 -------- Run | Yrd Mat Min Mat Mat Sto Rec Fac Hostile Shots Fired 493 | . 30 16 85 43 94 2 223 Missed 127 | . 10 9 29 16 23 1 39 Damage Taken 4737 | . 181 45 538 272 798 14 2889 Core 1308 | . 62 7 128 34 202 14 861 Absorbed by Shields . | . . . . . . . . Ignored by Resistances 1474 | . 56 14 160 81 224 4 935 Regen/Repaired (Parts) 18 | . . . . . 18 . . Core Remaining (%) 73 | 100 . 72 68 . . 54 . Volleys Fired 266 | . 34 8 71 40 57 . 56 Largest 3 | . 2 2 2 3 3 . 3 Hottest 182 | . 70 55 62 114 138 . 182 Shots Fired 607 | . 54 16 142 113 150 1 131 Gun 382 | . 54 8 118 73 93 1 35 Cannon 212 | . . 8 24 40 57 . 83 Launcher 13 | . . . . . . . 13 Special . | . . . . . . . . Kinetic 429 | . 36 16 142 73 81 1 80 Thermal 153 | . 18 . . 40 57 . 38 Explosive 6 | . . . . . . . 6 Electromagnetic 19 | . . . . . 12 . 7 Robot Hit Streak 48 | . 15 3 25 20 23 3 48 Robot Miss Streak 4 | . 3 3 1 1 4 . 4 Penetration Max . | . . . . . . . . Secondary Targets 4 | . 1 . 3 . . . . Max Gunslinging Chain 1 | . 1 . 1 . . . . Shots Hit Robots 427 | . 39 6 110 71 101 1 99 Core Hits 224 | . 23 4 48 38 46 1 64 Critical Kills 4 | . . . . 1 1 . 2 Critical Parts Destroyed . | . . . . . . . . Critical Strikes 8 | . 3 . . 1 1 . 3 Burn 3 | . 3 . . . . . . Meltdown 4 | . . . . 1 1 . 2 Blast 1 | . . . . . . . 1 Melee Attacks . | . . . . . . . . Impact . | . . . . . . . . Slashing . | . . . . . . . . Piercing . | . . . . . . . . Sneak Attacks . | . . . . . . . . Combat Hostiles . | . . . . . . . . Follow-up Attacks . | . . . . . . . . Damage Inflicted 8860 | . 478 80 1791 1339 1861 18 3293 Guns 4161 | . 478 80 1409 704 980 18 492 Cannons 3618 | . . . 382 635 881 . 1720 Explosions 1081 | . . . . . . . 1081 Melee . | . . . . . . . . Ramming . | . . . . . . . . Kinetic 5179 | . 328 80 1791 704 811 18 1447 Thermal 2657 | . 150 . . 635 881 . 991 Explosive 744 | . . . . . . . 744 Electromagnetic 280 | . . . . . 169 . 111 Impact . | . . . . . . . . Slashing . | . . . . . . . . Piercing . | . . . . . . . . Highest Corruption 8 | . 1 1 . . 2 2 8 Average Corruption 1 | . 1 1 . . 1 2 2 Corruption Purged . | . . . . . . . . Corruption Blocked . | . . . . . . . . Effects 21 | . 5 3 . . 3 7 3 Message Errors 7 | . . 1 . . 1 3 2 Matter Fused 4 | . 1 1 . . . 2 . Heat Flow Errors 3 | . 1 . . . 2 . . Energy Discharges 2 | . 1 . . . . 1 . Data Loss (minor) 3 | . 1 1 . . . . 1 Data Loss (major) 1 | . 1 . . . . . . Misfires 1 | . . . . . . 1 . Overload Shots . | . . . . . . . . Overflow Damage 144 | . . . . 10 17 . 117 Projectiles 32 | . . . . 10 17 . 5 Explosions 112 | . . . . . . . 112 Melee . | . . . . . . . . Knockbacks 17 | . . . 4 . . . 13 Impact . | . . . . . . . . Kinetic 17 | . . . 4 . . . 13 Secondary . | . . . . . . . . Self-Inflicted Damage 345 | . . . . . . . 345 Shots 14 | . . . . . . . 14 Rammed . | . . . . . . . . Targets Rammed 1 | . . . 1 . . . . Kicked 1 | . . . 1 . . . . Crushed . | . . . . . . . . Highest Temperature 753 | . 123 . 9 336 458 . 753 Average Temperature 133 | . 31 . 3 80 118 . 234 Received Heat Transfer 1605 | . 114 . 294 180 414 . 603 Effects 36 | . . . . . 1 . 35 Shutdowns 8 | . . . . . . . 8 Energy Bleed 7 | . . . . . 1 . 6 Interference 5 | . . . . . . . 5 Matter Decay 2 | . . . . . . . 2 Short Circuit 5 | . . . . . . . 5 Damage (minor) 2 | . . . . . . . 2 Damage (major) 4 | . . . . . . . 4 Damage (core) 3 | . . . . . . . 3 Siege Activations . | . . . . . . . . Robots Corrupted . | . . . . . . . . Combat Hostiles . | . . . . . . . . Parts Fried . | . . . . . . . . Impact Corruptions . | . . . . . . . . Robots Melted 4 | . . . . 1 1 . 2 Combat Hostiles 3 | . . . . . 1 . 2 Parts Melted 15 | . 2 . . 4 1 . 8 Heat Transferred 4701 | . 666 . . 1147 1591 . 1297 Parts Sabotaged . | . . . . . . . . Parts Stolen . | . . . . . . . . Parts Stripped . | . . . . . . . . Power Chain Reactions . | . . . . . . . . Alert | -11 -10 -10 -9 -8 -8 -8 -6 ------- Run | Yrd Mat Min Mat Mat Sto Rec Fac Peak Influence 453 | . 226 75 453 337 437 151 397 Initial 162 | . . . 24 162 58 136 1 Average 186 | . 108 69 205 206 304 122 158 Maximum Alert Level 2 | . 1 . 2 1 2 . 1 Low Security (%) 60 | 100 90 100 49 42 15 100 83 Level 1 31 | . 9 . 36 57 53 . 16 Level 2 8 | . . . 13 . 30 . . Level 3 . | . . . . . . . . Level 4 . | . . . . . . . . Level 5 . | . . . . . . . . High Security . | . . . . . . . . Max Security . | . . . . . . . . Squads Dispatched 17 | . . . 4 1 5 . 7 Investigation 5 | . . . 2 . . . 3 Extermination 2 | . . . . . . . 2 Reinforcement 7 | . . . 2 1 2 . 2 Assault . | . . . . . . . . Garrison 3 | . . . . . 3 . . Intercept . | . . . . . . . . Searches Triggered . | . . . . . . . . Construction Impeded 1 | . . . . . . . 1 Haulers Reinforced . | . . . . . . . . Active Scanning Responses . | . . . . . . . . Cargo Convoy Interrupts 1 | . . . . . . . 1 Stealth | -11 -10 -10 -9 -8 -8 -8 -6 --------- Run | Yrd Mat Min Mat Mat Sto Rec Fac Distress Signals 4 | . . . . 1 3 . . Communications Jammed . | . . . . . . . . Distress Signals . | . . . . . . . . Times Spotted 143 | . 15 3 37 24 31 1 32 Peak Tracking Total 5 | . 3 3 4 3 5 . 5 Tactical Retreats 7 | . . . 3 . 2 . 2 Traps | -11 -10 -10 -9 -8 -8 -8 -6 ------- Run | Yrd Mat Min Mat Mat Sto Rec Fac Traps Triggered 5 | . 1 . 1 . 2 . 1 Indirectly . | . . . . . . . . Trap Hack Attempts . | . . . . . . . . Triggered . | . . . . . . . . Disarmed 4 | . 4 . . . . . . Reprogrammed . | . . . . . . . . Reused . | . . . . . . . . Traps Extracted . | . . . . . . . . Installed . | . . . . . . . . Triggered . | . . . . . . . . Machines | -11 -10 -10 -9 -8 -8 -8 -6 ---------- Run | Yrd Mat Min Mat Mat Sto Rec Fac Machines Disabled 8 | . . . . . . . 8 Max in Single Turn 8 | . . . . . . . 8 Garrison Access 2 | . . . . 1 1 . . Machines Repaired . | . . . . . . . . Machines Dismantled . | . . . . . . . . Machines Sabotaged . | . . . . . . . . Overloaded Fab Kills . | . . . . . . . . Hacking | -11 -10 -10 -9 -8 -8 -8 -6 --------- Run | Yrd Mat Min Mat Mat Sto Rec Fac Machines Accessed 42 | . 8 . 3 8 9 8 6 Terminals 23 | . 6 . 1 5 5 3 3 Fabricators 2 | . . . . . . . 2 Repair Stations 2 | . . . . 1 1 . . Recycling Units 10 | . 2 . 1 . 2 5 . Scanalyzers 3 | . . . 1 1 . . 1 Garrison Access 2 | . . . . 1 1 . . Total Hacks 119 | . 25 . 9 34 14 14 23 Successful 72 | . 10 . 9 20 11 7 15 Failed 47 | . 15 . . 14 3 7 8 Catastrophic 3 | . . . . 1 . 2 . Database Lockouts . | . . . . . . . . Manual 3 | . 1 . . . 2 . . Terminals 72 | . 19 . 1 26 8 5 13 Fabricators 4 | . . . . . . . 4 Repair Stations 5 | . . . . 3 2 . . Recycling Units 21 | . 6 . 3 . 3 9 . Scanalyzers 14 | . . . 5 3 . . 6 Garrison Access 3 | . . . . 2 1 . . Terminal Hacks 38 | . 6 . 1 16 5 3 7 Record 8 | . . . 1 4 . . 3 Part Schematic 3 | . . . . . . 2 1 Prototype ID Bank 5 | . 2 . . 1 1 . 1 Open Door 1 | . . . . . 1 . . Branch Access Points 2 | . . . . 1 1 . . Repair Station Index 1 | . . . . 1 . . . Alert Level 1 | . . . . 1 . . . Unreport Threat 1 | . . . . 1 . . . Locate Traps 2 | . . . . 1 1 . . Disarm Traps 1 | . 1 . . . . . . Dispatch Records 1 | . . . . . . . 1 Maintenance Status 1 | . . . . 1 . . . Hauler Manifests 3 | . 1 . . 2 . . . Registered Components 1 | . . . . 1 . . . Registered Prototypes 1 | . 1 . . . . . . Zone Layout 6 | . 1 . . 2 1 1 1 Fabricator Hacks 3 | . . . . . . . 3 Load Schematic 2 | . . . . . . . 2 Build 1 | . . . . . . . 1 Repair Station Hacks 4 | . . . . 2 2 . . Scan Component 2 | . . . . 1 1 . . Repair 2 | . . . . 1 1 . . Recycling Unit Hacks 14 | . 4 . 3 . 3 4 . Process 2 | . 1 . 1 . . . . Report Inventory 4 | . 2 . 1 . 1 . . Retrieve Matter 2 | . 1 . 1 . . . . Retrieve Components 6 | . . . . . 2 4 . Scanalyzer 11 | . . . 5 1 . . 5 Insert Component 7 | . . . 3 1 . . 3 Analyze 4 | . . . 2 . . . 2 Garrison Access Hacks 2 | . . . . 1 1 . . Seal Access 2 | . . . . 1 1 . . Unauthorized Hacks . | . . . . . . . . Terminals . | . . . . . . . . Fabricators . | . . . . . . . . Repair Stations . | . . . . . . . . Recycling Units . | . . . . . . . . Scanalyzers . | . . . . . . . . Garrison Access . | . . . . . . . . Data Cores Recovered 2 | . . . . 1 1 . . Used . | . . . . . . . . Hacking Detections 32 | . 7 . 2 7 4 7 5 Full Trace Events 5 | . 2 . 1 . . . 2 Feedback Events . | . . . . . . . . Feedback Blocked . | . . . . . . . . Robot Schematics Acquired . | . . . . . . . . Robots Built . | . . . . . . . . Authchips . | . . . . . . . . Time . | . . . . . . . . Total Robot Build Rating . | . . . . . . . . Part Schematics Acquired 6 | . . . 2 . . 2 2 Parts Built 1 | . . . . . . . 1 Authchips . | . . . . . . . . Time 42 | . . . . . . . 42 Total Part Build Rating 4 | . . . . . . . 4 Parts Repaired 2 | . . . . 1 1 . . Time 90 | . . . . 64 26 . . Parts Recycled . | . . . . . . . . Recycled Matter 378 | . 105 . 273 . . . . Retrieved Matter 387 | . 105 . 282 . . . . Retrieved Components 21 | . . . . . 11 10 . Parts Scanalyzed 4 | . . . 2 . . . 2 Part Schematics Acquired 3 | . . . 2 . . . 1 Parts Damaged 1 | . . . 1 . . . . Bothacking | -11 -10 -10 -9 -8 -8 -8 -6 ------------ Run | Yrd Mat Min Mat Mat Sto Rec Fac Used RIF Installer . | . . . . . . . . Robots Hacked . | . . . . . . . . Non-combat . | . . . . . . . . Combat . | . . . . . . . . Robot Hacks Applied . | . . . . . . . . Relay Couplers Released . | . . . . . . . . Fabnet Peak Effective % . | . . . . . . . . Robots Rewired . | . . . . . . . . Allies Hacked . | . . . . . . . . Hacks Repelled . | . . . . . . . . Allies | -11 -10 -10 -9 -8 -8 -8 -6 -------- Run | Yrd Mat Min Mat Mat Sto Rec Fac Total Allies . | . . . . . . . . Largest Group . | . . . . . . . . Highest-Rated Group . | . . . . . . . . Highest-Rated Ally . | . . . . . . . . Total Orders . | . . . . . . . . Ally Attacks . | . . . . . . . . Total Damage . | . . . . . . . . Kills . | . . . . . . . . Allies Corrupted . | . . . . . . . . Allies Melted . | . . . . . . . . Intel | -11 -10 -10 -9 -8 -8 -8 -6 ------- Run | Yrd Mat Min Mat Mat Sto Rec Fac Robot Analysis Total . | . . . . . . . . Derelict Logs Recovered 1 | . . 1 . . . . . Drone Launches 2 | . . . . . . . 2 Drone Recoveries 2 | . . . . . . . 2 Exploration | -11 -10 -10 -9 -8 -8 -8 -6 ------------- Run | Yrd Mat Min Mat Mat Sto Rec Fac Turns Passed 6504 | 93 829 206 1551 1078 1036 486 1225 Spaces Moved 3469 | 73 572 143 662 628 530 351 510 Core 18 | 16 . . . . . . 2 Treads . | . . . . . . . . Legs 955 | 57 572 143 183 . . . . Wheels 2496 | . . . 479 628 530 351 508 Hover . | . . . . . . . . Flight . | . . . . . . . . Fastest Speed 50 | 50 120 120 135 135 120 130 160 Average Speed 147 | 104 120 120 184 135 136 131 183 Slowest Speed 2700 | 120 120 120 400 135 160 135 2700 Overloaded Moves . | . . . . . . . . Propulsion Burnouts . | . . . . . . . . Robots Hopped . | . . . . . . . . Cave-ins Triggered . | . . . . . . . . Exploration Rate (%) 47 | 4 85 38 54 60 76 50 11 Regions Visited 7 Branch Regions 3 Pre-discovered Areas 1 | . . 1 . . . . . Known Exits Taken 2 | . . . . 1 1 . . Unknown Exits Taken 5 | 1 1 1 1 . . 1 . Scrap Searched 1 | . . 1 . . . . . Spaces Dug . | . . . . . . . . Terrain Destroyed 86 | . . . 2 . . . 84 Melee . | . . . . . . . . Projectile 9 | . . . 2 . . . 7 AOE 77 | . . . . . . . 77 Terrain Rammed . | . . . . . . . . Walls Destroyed . | . . . . . . . . Machines Disabled . | . . . . . . . . Actions | -11 -10 -10 -9 -8 -8 -8 -6 --------- Run | Yrd Mat Min Mat Mat Sto Rec Fac Total 4342 | 87 668 162 847 776 726 377 699 Wait 397 | 4 23 . 67 77 111 22 93 Move 3462 | 72 571 142 661 627 529 350 510 Hop . | . . . . . . . . Pick Up 99 | 5 20 7 23 17 10 2 15 Fast Attach 9 | 5 1 1 . . 2 . . Attach 36 | 1 3 . 6 4 5 . 17 Detach 1 | . . . . . . . 1 Swap 21 | . 2 1 8 2 5 1 2 Drop 50 | . 14 3 10 9 7 2 5 Fire 266 | . 34 8 71 40 57 . 56 Melee . | . . . . . . . . Ram . | . . . . . . . . Kick 1 | . . . 1 . . . . Crush . | . . . . . . . . Escape Stasis . | . . . . . . . . Rewire . | . . . . . . . . Trap . | . . . . . . . . Miscellaneous . | . . . . . . . . Route ------- -11/Scrapyard -10/Materials (discovered 4 exits: *Mat x2 / [*Min x2]) -10/Mines -9/Materials (discovered 2 exits: *Mat x2) -8/Materials (discovered 3 exits: [*Fac x2] / *Sto) -8/Storage (discovered 2 exits: [*Fac] / *Rec) -8/Recycling -6/Factory (discovered 1 exit: [*Fac]) History --------- Turn | Location | Event 19 | -11/Scrapyard | Discovered new exit (range 16) 94 | -11/Scrapyard | Entered Materials 138 | -10/Materials | Discovered new exit (range 6) 233 | -10/Materials | Discovered new exit (range 13) 318 | -10/Materials | Build established: Mutant 381 | -10/Materials | Discovered new exit (range 7) 576 | -10/Materials | Discovered new exit (range 16) 923 | -10/Materials | Entered Mines 1024 | -10/Mines | Learned location of Zion (-7) 1122 | -10/Mines | Discovered new exit (range 6) 1129 | -10/Mines | Entered Materials 1129 | -9/Materials | Evolved 2 slots: Utility x2 2330 | -9/Materials | Build established: Scavenger-Mutant 2351 | -9/Materials | Discovered new exit (range 15) 2603 | -9/Materials | Discovered new exit (range 3) 2680 | -9/Materials | Entered another Materials area 2680 | -8/Materials | Evolved 2 slots: Utility x1, Weapon x1 2788 | -8/Materials | Repaired Broken Imp. EM Shotgun 2974 | -8/Materials | Discovered new exit (range 16) 3164 | -8/Materials | Build established: Scavenger-Gunner 3407 | -8/Materials | Discovered new exit (range 14) 3419 | -8/Materials | Identified exit to Storage 3758 | -8/Materials | Entered Storage 3877 | -8/Storage | Garrison activated, responded to threat 4036 | -8/Storage | Lost 3 parts (1p1n1w) 4500 | -8/Storage | Met 01-MTF 4538 | -8/Storage | Identified exit to Recycling 4590 | -8/Storage | Discovered new exit (range 16) 4656 | -8/Storage | Repaired Seismic Detector 4794 | -8/Storage | Entered Recycling 4794 | -8/Recycling | Accompanied by 1 ally (01-MTF) 4795 | -8/Recycling | Met a Zionite searching for Scraptown 4941 | -8/Recycling | Discovered new exit (range 15) 5280 | -8/Recycling | Entered Factory 5280 | -6/Factory | Evolved 4 slots: Power x1, Utility x3 5574 | -6/Factory | Build established: Hauler-Gunner 5618 | -6/Factory | Fabricated Hvy. Rocket Launcher (x1) 5873 | -6/Factory | Discovered new exit (range 11) 6312 | -6/Factory | Cargo convoy interrupted 6406 | -6/Factory | Core integrity fell below 50% 6428 | -6/Factory | Lost 6 parts (2p2u2w) 6437 | -6/Factory | Core integrity fell below 20% 6505 | -6/Factory | Destroyed by P-60 Hacker with Shock Rifle Last Messages --------------- [Achievement: Oops] 06455_ Lgt. Deuterium Engine destroyed. 06458_ U-05 Engineer lays Concrete. 06462_ The unstable cave ceiling collapses. 06462_ U-05 Engineer lays Concrete. 06464_ Adv. EMP Blaster destroyed. 06465_ U-05 Engineer lays Concrete. 06467_ OJQ3KX8A2GR<:7Y3C U>,7=GVZTD 06467_ U-05 Engineer lays Concrete. 06477_ U-05 Engineer builds a Wall. 06483_ Shock Bomb Launcher destroyed. 06489_ U-05 Engineer builds a Wall. 06493_ M-13 Machinist repairs P-60 Hacker. 06493_ U-05 Engineer lays Concrete. 06493_ Hacking Suite destroyed. 06494_ U-05 Engineer builds a Wall. 06496_ Broken Com. Ion Cannon destroyed. 06499_ U-05 Engineer lays Concrete. 06501_ U-05 Engineer builds a Wall. 06503_ System corrupted: Component data lost. Map ----- +----------------------------------------------------+ | ????????? !== ??????????????????? | | ?????????? !== ????????????????????? | | ??????????? != ???????????????? ????? | | ?????????????# #########????????? ????? | | ?????????????# # #????????? ????? | | ?????????????# # #????????? ????? | | ?????????????# + #????????? ????? | | ?????????????+ "" # = #????????? ????? | | ?????????????# ^"F # % #????????? ????? | | ?????????????# "" # #????????# #???? | | ?????????????# "" #####!% #????????# #???? | | ?????????????# #???#%% ########## #???? | | ?????????????# #???# # ## #???? | | ?????????????# ####???# # ## #???? | | ?????????????# #??????# ! # ## #???? | | ?????????????# #??????# # ## #???? | | ?????????????# #??????#! !! ####+##### ##### | | ????????########+########?# !! / | | ????????# #?# !! %##########+##### | | ????????# * ! ###% #?????# # | | ????????# % # #?????# ! # | | ????????# * #######?????# # | | ????????+ % [ #????????# # | | ????????# # % # #????????# """"# | | ????????# ### # #????????#! """"# | | ????????# %/@p #????????# """"# | | ????????# ### # #????????# """"# | | ????????? ## # #????????# ? | | ?????????##;##### ##????????######???? | | | | | | | | | | | | | | | | | | | | | | | | | | | | | | | | | | | | | | | | | | | +----------------------------------------------------+ Best States ------------- Heat Dissipation 37 Energy Generation 23 Energy Capacity 305 Matter Stores 300 Matter Capacity 300 Sight Range 16 Terrain Scan Density 10 Additional Mass Support 9 Armor Coverage 300 Resistance: KI 40 Resistance: TH 20 Resistance: EX 20 Resistance: EM 20 Resistance: I 20 Resistance: S 20 Resistance: P 20 Evasion (%) 55 Targeting Accuracy 6 Offensive Hacking 20 Item Schematics ----------------- Imp. Assault Rifle | -9/Materials | Scanalyzed Imp. EM Shotgun | -9/Materials | Scanalyzed Hvy. Rocket Launcher | -8/Recycling | Hacked EM Pulse Cannon | -8/Recycling | Hacked Com. Ion Cannon | -6/Factory | Scanalyzed Imp. Cloaking Device | -6/Factory | Hacked Robot Schematics ------------------ None Fabricated ------------ Hvy. Rocket Launcher | x1 | -6/Factory Alien Tech Used ----------------- None Achievements -------------- Oops Packrat Tank \\IAMDERELICT Challenges ------------ None Game ------ Seed PersonalCoolantFacilitator Manual? 0 Play Time 01:38:18 Cumulative 18.6 hours Start 2024.08.12 @ 17:18:16 End 2024.08.12 @ 21:39:16 Sessions 3 Manual Loads 0 Difficulty Adventurer Special Mode None Game No. 8 Rogue 2 Adventurer 6 Explorer 0 Win Type - Total 0 Types 0/0/0/0/0/0/0/0/0 Lore% 3 Gallery% 12 Achievement% 15 Wizard Run 0 Options --------- Layout 0 ASCII 0 Keyboard 0 Movement Mouse Keybinds 0 Fullscreen 1 Font 12/Smallcaps Map View 83x54 Zoom Use 0% Tactical HUD 1 Map Filters NONE Filters NONE Steam X RUN: e26e728c-0280-4b9d-8fee-afd0890f42c8